bitfinex-derivatives/quotes_SOLF0:USTF0_20250105
["timestamp","ask_amount","ask_price","bid_price","bid_amount"]
[1736045743505,7.17723084,216.89,216.85,2.306]
[1736045746308,7.17723084,216.89,216.86,2.3059]
[1736045746509,2.62,216.91,216.8,13.48219423]
[1736045746698,7.17723084,216.89,216.82,7.17723084]
[1736045747102,7.17723084,216.89,216.86,2.3059]
[1736045751009,7.17723084,216.87,216.81,8.61146339]
[1736045752008,7.17723084,216.87,216.81,2.3065]
[1736045752812,7.17723084,216.83,216.79,42.87346024]
[1736045753000,7.17723084,216.83,216.79,45.18006024]
[1736045753907,7.17723084,216.83,216.79,2.3066]
[1736045756009,4.9259,216.87,216.79,2.3066]
[1736045756209,7.17723084,216.83,216.79,2.3066]
[1736045757014,7.17723084,216.83,216.8,2.3066]
[1736045761320,7.17723084,216.83,216.82,2.3064]
[1736045761518,7.17723084,216.86,216.79,7.17723084]
[1736045761919,2.3055,216.9,216.84,2.3061]
[1736045762121,7.17723084,216.88,216.81,7.17723084]
[1736045762422,7.17723084,216.88,216.84,2.3061]
[1736045762618,7.17723084,216.88,216.81,7.17723084]
[1736045763323,7.17723084,216.88,216.85,2.306]
[1736045764019,7.17723084,216.88,216.81,7.17723084]
[1736045764223,9.79723084,216.9,216.87,2.3058]
[1736045765624,7.17723084,216.9,216.87,2.3058]
[1736045766130,344.20575002,217.1,216.87,7.17723084]
[1736045766431,7.17723084,216.97,216.89,7.17723084]
[1736045766622,9.79723084,216.97,216.92,2.3052]
[1736045766822,9.79723084,216.97,216.91,7.17723084]
[1736045768430,9.79723084,216.97,216.94,2.3051]
[1736045772030,7.17723084,216.95,216.86,7.17723084]
[1736045772828,7.17723084,216.95,216.88,7.17723084]
[1736045773330,9.79723084,216.97,216.93,2.3052]
[1736045773531,2.62,216.97,216.93,2.3052]
[1736045773725,9.79723084,216.97,216.9,7.17723084]
[1736045773924,9.79723084,216.97,216.92,2.3053]
[1736045774525,9.79723084,216.97,216.93,2.3052]
[1736045775331,9.79723084,216.97,216.9,7.17723084]
[1736045775532,7.17723084,216.97,216.94,2.3051]
[1736045777433,7.17723084,217.0,216.92,7.17723084]
[1736045777635,4.2383,217.03,216.92,7.17723084]
[1736045777636,2.62,217.02,216.92,7.17723084]
[1736045777834,7.17723084,217.01,216.94,7.17723084]
[1736045779431,7.17723084,217.01,216.97,2.3047]
[1736045779841,7.17723084,216.99,216.92,7.17723084]
[1736045781431,7.17723084,216.99,216.96,2.3049]
[1736045784836,7.17723084,216.99,216.92,7.17723084]
[1736045785140,7.17723084,216.99,216.95,2.305]
[1736045785328,7.17723084,216.99,216.92,7.17723084]
[1736045785535,7.17723084,216.97,216.93,2.3051]
[1736045786140,7.17723084,216.97,216.94,2.3051]
[1736045791642,7.17723084,216.97,216.93,2.3052]
[1736045794639,7.17723084,216.97,216.9,7.17723084]
[1736045794841,7.17723084,216.97,216.94,2.3051]
[1736045796243,7.17723084,216.99,216.9,7.17723084]
[1736045797137,7.17723084,216.99,216.92,7.17723084]
[1736045798248,7.17723084,216.99,216.95,2.3049]
[1736045799643,7.17723084,216.99,216.92,7.17723084]
[1736045799849,7.17723084,216.99,216.96,2.3049]
[1736045800552,7.17723084,216.99,216.97,2.3047]
[1736045801044,26.67744741,217.07,216.88,8.90496339]
[1736045801045,26.67744741,217.07,216.96,7.17723084]
[1736045801245,7.17723084,217.04,216.96,7.17723084]
[1736045802149,7.17723084,217.04,217.0,2.3044]
[1736045802351,7.17723084,217.04,216.96,7.17723084]
[1736045803441,7.17723084,217.04,216.98,2.3046]
[1736045803643,7.17723084,217.04,216.96,7.17723084]
[1736045804450,7.17723084,217.04,216.99,2.3045]
[1736045805142,7.17723084,217.04,216.97,7.17723084]
[1736045805348,7.17723084,217.04,217.0,2.3044]
[1736045807755,7.17723084,217.04,217.01,2.3043]
[1736045813159,7.17723084,217.04,216.97,7.17723084]
[1736045814660,7.17723084,217.04,216.99,2.3045]
[1736045814860,7.17723084,217.04,216.97,7.17723084]
[1736045815361,7.17723084,217.04,217.0,2.3044]
[1736045819963,7.17723084,217.04,217.01,2.3043]
[1736045822470,7.17723084,217.04,217.02,2.3042]
[1736045823378,7.17723084,217.06,217.02,2.3042]
[1736045830186,7.17723084,217.06,216.97,7.17723084]
[1736045830383,7.17723084,217.06,217.03,2.3041]
[1736045832183,29.46534741,217.07,217.06,2.3038]
[1736045832382,28.07494741,217.07,217.06,2.3038]
[1736045833084,28.07494741,217.07,217.01,7.17723084]
[1736045833290,28.07494741,217.07,217.05,2.3039]
[1736045838989,28.07494741,217.07,217.03,2.304]
[1736045839293,26.67744741,217.07,217.01,7.17723084]
[1736045839492,7.17723084,217.09,217.01,7.17723084]
[1736045840395,7.17723084,217.09,217.04,2.3039]
[1736045843695,7.17723084,217.09,217.01,7.17723084]
[1736045843895,9.48073084,217.09,217.02,2.3041]
[1736045844801,7.17723084,217.07,217.03,2.3041]
[1736045851299,7.17723084,217.08,217.03,2.3041]
[1736045853904,2.3034,217.1,217.03,2.3041]
[1736045854104,7.17723084,217.09,217.01,7.17723084]
[1736045854310,7.17723084,217.09,217.04,2.304]
[1736045861116,7.17723084,217.09,217.05,2.3039]
[1736045863414,2.6,217.11,217.03,7.17723084]
[1736045863616,188.27721487,217.28,217.03,7.17723084]
[1736045863617,9.57731794,217.14,217.09,2.3035]
[1736045863920,9.57731794,217.14,217.05,7.17723084]
[1736045863921,7.17723084,217.13,217.05,7.17723084]
[1736045864719,16.75454878,217.13,217.05,7.17723084]
[1736045865017,13.29719817,217.13,217.05,7.17723084]
[1736045865223,7.17723084,217.13,217.05,7.17723084]
[1736045865423,7.17723084,217.13,217.08,2.3035]
[1736045865623,7.17723084,217.13,217.05,7.17723084]
[1736045867423,7.17723084,217.13,217.08,2.3035]
[1736045870429,7.17723084,217.11,217.0,2.9074]
[1736045870622,7.17723084,217.07,217.03,2.304]
[1736045872031,9.48073084,217.09,217.03,2.304]
[1736045872421,2.3034,217.11,217.03,2.304]
[1736045872626,7.17723084,217.1,217.03,2.304]
[1736045873127,7.17723084,217.1,217.01,7.17723084]
[1736045873322,7.17723084,217.1,217.04,2.304]
[1736045873725,9.48063084,217.1,217.04,2.304]
[1736045875624,7.17723084,217.1,217.01,7.17723084]
[1736045875822,7.17723084,217.1,217.06,2.3038]
[1736045877922,7.17723084,217.1,217.03,7.17723084]
[1736045878123,7.17723084,217.1,217.07,2.3037]
[1736045880431,7.17723084,217.1,217.08,2.3036]
[1736045882527,10.63426999,217.12,217.08,2.3036]
[1736045883025,7.17723084,217.12,217.1,2.3033]
[1736045887236,7.17723084,217.12,217.09,2.3035]
[1736045888328,2.303,217.14,217.09,2.3035]
[1736045888528,9.48023084,217.14,217.09,2.3035]
[1736045901339,7.17723084,217.14,217.04,2.6]
[1736045901544,9.47993084,217.17,217.11,2.3032]
[1736045902242,7.17723084,217.17,217.13,2.303]
[1736045904751,7.17723084,217.2,217.15,2.3028]
[1736045905147,10.63371521,217.2,217.15,2.3028]
[1736045905651,7.17723084,217.2,217.15,2.3028]
[1736045905953,9.47953084,217.2,217.15,2.3028]
[1736045906149,9.47953084,217.2,217.14,2.303]
[1736045910651,7.17723084,217.2,217.14,2.303]
[1736045911652,9.55492303,217.25,217.15,2.3028]
[1736045911851,9.55492303,217.25,217.14,7.17723084]
[1736045911852,9.47933084,217.22,217.14,7.17723084]
[1736045912853,9.47933084,217.22,217.14,9.77723084]
[1736045913558,9.47933084,217.22,217.16,2.3027]
[1736045914153,2.3021,217.22,217.16,2.3027]
[1736045914462,9.47933084,217.22,217.16,2.3027]
[1736045916154,7.17723084,217.22,217.17,2.3026]
[1736045917957,7.17723084,217.24,217.19,2.3024]
[1736045918859,7.17723084,217.24,217.16,7.17723084]
[1736045919058,7.17723084,217.24,217.2,2.3022]
[1736045920062,7.17723084,217.24,217.21,2.3022]
[1736045920358,7.17723084,217.24,217.18,7.17723084]
[1736045920359,2.9154,217.26,217.2,7.17723084]
[1736045921557,2.9154,217.26,217.22,2.302]
[1736045922658,1.4579,217.26,217.22,2.302]
[1736045923865,1.4579,217.26,217.23,2.302]
[1736045926464,1.4579,217.26,217.2,7.17723084]
[1736045926965,7.17723084,217.21,217.17,2.6]
[1736045927762,7.17723084,217.21,217.14,7.17723084]
[1736045927963,7.17723084,217.21,217.14,9.77723084]
[1736045928876,7.17723084,217.21,217.14,7.17723084]
[1736045929177,7.17723084,217.19,217.14,12.08013084]
[1736045930176,7.17723084,217.19,217.15,2.3028]
[1736045932075,7.17723084,217.19,217.16,2.3027]
[1736045933377,7.17723084,217.21,217.16,2.3027]
[1736045936274,7.17723084,217.21,217.14,7.17723084]
[1736045936475,7.17723084,217.19,217.12,7.17723084]
[1736045938482,2.3024,217.2,217.14,2.303]
[1736045938681,7.17723084,217.18,217.14,2.303]
[1736045939979,7.17723084,217.2,217.14,2.303]
[1736045940482,7.17723084,217.2,217.13,7.17723084]
[1736045940483,7.17723084,217.2,217.15,2.3028]
[1736045941682,2.3022,217.21,217.15,2.3028]
[1736045941884,2.3019,217.25,217.18,2.3025]
[1736045942084,7.17723084,217.24,217.18,2.3025]
[1736045942287,7.17723084,217.22,217.18,2.3025]
[1736045946384,7.17723084,217.23,217.19,2.3024]
[1736045953094,9.47923084,217.23,217.17,2.3026]
[1736045953296,7.17723084,217.21,217.17,2.3026]
[1736045954099,7.17723084,217.21,217.18,2.3025]
[1736045954298,9.47923084,217.23,217.18,2.3025]
[1736045957898,2.3021,217.22,217.18,2.3025]
[1736045959192,2.3021,217.22,217.15,7.17723084]
[1736045959394,7.17723084,217.21,217.15,7.17723084]
[1736045959597,6.8001,217.26,217.11,8.90496339]
[1736045959598,7.17723084,217.18,217.11,8.90496339]
[1736045960298,9.47973084,217.18,217.13,2.3031]
[1736045961502,7.17723084,217.18,217.13,2.3031]
[1736045962490,9.47973084,217.18,217.12,2.3032]
[1736045962895,7.17723084,217.16,217.12,2.3032]
[1736045963795,9.48023084,217.14,217.08,27.52345355]
[1736045964000,7.17723084,217.12,217.08,25.21985355]
[1736045964499,7.17723084,217.12,217.07,6.30496339]
[1736045965602,7.17723084,217.12,217.06,2.3038]
[1736045966004,7.17723084,217.12,217.05,7.17723084]
[1736045967408,7.17723084,217.12,217.07,2.3037]
[1736045974510,7.17723084,217.12,217.04,7.17723084]
[1736045974811,7.17723084,217.12,217.08,2.3036]
[1736045977109,7.17723084,217.12,217.09,2.3035]
[1736045978311,7.17723084,217.12,217.1,2.3034]
[1736045979816,6.3985,217.15,217.1,2.3034]
[1736045980013,7.17723084,217.13,217.06,7.17723084]
[1736045981114,425.71623922,217.36,217.08,7.17723084]
[1736045981315,7.17723084,217.17,217.1,7.17723084]
[1736045981514,7.17723084,217.17,217.1,2.3033]
[1736045981815,2.3033,217.11,217.01,25.21985355]
[1736045982016,7.17723084,217.09,217.01,25.21985355]
[1736045982220,7.17723084,217.09,217.01,27.81985355]
[1736045982615,7.17723084,217.09,217.01,2.6]
[1736045983217,7.17723084,217.09,217.0,1.4578]
[1736045983415,7.17723084,217.07,217.0,4.0578]
[1736045983618,7.17723084,217.1,217.02,7.17723084]
[1736045984420,7.17723084,217.1,217.05,2.3038]
[1736045984613,7.17723084,217.1,217.02,7.17723084]
[1736045986024,7.17723084,217.1,217.06,2.3037]
[1736045987124,4.9031,217.14,217.07,2.3037]
[1736045987320,7.17723084,217.11,217.04,7.17723084]
[1736045987522,7.17723084,217.13,217.04,7.17723084]
[1736045987722,7.17723084,217.13,217.05,2.6]
[1736045988428,7.17723084,217.13,217.09,2.3035]
[1736045989426,7.17723084,217.11,217.09,2.3035]
[1736045998327,7.17723084,217.13,217.06,2.3037]
[1736045998527,7.17723084,217.13,217.05,2.6]
[1736045999631,7.17723084,217.13,217.09,2.3034]
[1736046000727,7.17723084,217.11,217.07,2.3036]
[1736046001027,7.17723084,217.09,217.07,2.3036]
[1736046001628,7.17723084,217.09,217.04,6.30496339]
[1736046001827,5.5453,217.16,217.05,2.3039]
[1736046001828,7.17723084,217.06,217.05,2.3039]
[1736046002426,7.17723084,217.06,217.04,2.304]
[1736046002627,7.17723084,217.06,217.02,6.30496339]
[1736046002827,7.17723084,217.03,217.02,6.30496339]
[1736046003432,7.17723084,217.03,216.98,2.3046]
[1736046003633,7.17723084,217.03,216.96,42.85282071]
[1736046004236,7.17723084,217.03,217.0,2.3044]
[1736046008446,7.17723084,217.03,216.95,9.77723084]
[1736046008642,7.17723084,217.01,216.98,2.3046]
[1736046008842,7.17723084,217.01,216.94,6.30496339]
[1736046009146,7.17723084,217.04,216.97,7.17723084]
[1736046009545,7.17723084,217.04,216.96,2.3048]
[1736046009744,7.17723084,217.02,216.94,4.40258437]
[1736046010048,7.17723084,216.98,216.94,4.40258437]
[1736046010346,7.17723084,216.98,216.91,32.39708439]
[1736046011551,7.17723084,216.98,216.94,2.3051]
[1736046013543,7.17723084,216.98,216.91,7.17723084]
[1736046013847,1.3676,217.0,216.93,7.17723084]
[1736046014048,7.17723084,217.02,216.95,7.17723084]
[1736046014448,7.17723084,217.02,217.0,2.3044]
[1736046014851,1.3844,217.07,216.97,7.17723084]
[1736046015051,7.17723084,217.05,216.97,7.17723084]
[1736046015445,7.17723084,217.05,217.01,2.3043]
[1736046016751,7.17723084,217.05,216.97,7.17723084]
[1736046016946,7.17723084,217.03,216.97,7.17723084]
[1736046017651,7.17723084,217.05,217.01,2.3043]
[1736046017851,2.6,217.06,217.01,2.3043]
[1736046018047,7.17723084,217.05,217.01,2.3043]
[1736046019847,7.17723084,217.05,216.97,7.17723084]
[1736046020049,7.17723084,217.05,217.02,2.3042]
[1736046020849,7.17723084,217.05,216.97,7.17723084]
[1736046021154,8.56163084,217.07,217.03,2.3041]
[1736046023055,8.56163084,217.07,216.99,7.17723084]
[1736046023252,8.56163084,217.07,217.04,2.304]
[1736046024756,1.4031,217.09,217.01,7.17723084]
[1736046025059,7.17723084,217.1,217.03,7.17723084]
[1736046026461,7.17723084,217.08,217.0,2.6]
[1736046026663,7.17723084,217.07,217.0,9.77723084]
[1736046027464,7.17723084,217.07,217.05,2.3039]
[1736046030666,7.17723084,217.09,217.07,2.3037]
[1736046034468,7.17723084,217.09,217.08,2.3036]
[1736046040470,7.17723084,217.11,217.09,2.3035]
[1736046040874,7.17723084,217.11,217.04,7.17723084]
[1736046041069,7.17723084,217.11,217.1,2.3034]
[1736046041677,7.17723084,217.13,217.06,7.17723084]
[1736046041973,7.17723084,217.13,217.11,2.3033]
[1736046043278,7.17723084,217.13,217.06,7.17723084]
[1736046043473,7.17723084,217.13,217.12,2.3032]
[1736046044569,7.17723084,217.16,217.14,2.303]
[1736046045179,7.17723084,217.16,217.12,2.3031]
[1736046047084,7.17723084,217.14,217.12,2.3031]
[1736046050381,7.17723084,217.14,217.08,7.17723084]
[1736046050581,7.17723084,217.16,217.08,7.17723084]
[1736046052489,7.17723084,217.16,217.13,2.303]
[1736046053781,2.3023,217.2,217.13,2.303]
[1736046053985,7.17723084,217.18,217.16,2.3027]
[1736046055385,7.17723084,217.18,217.12,7.17723084]
[1736046055585,7.17723084,217.18,217.17,2.3026]
[1736046056988,7.17723084,217.18,217.13,2.3031]
[1736046057187,7.17723084,217.16,217.11,2.6]
[1736046057986,7.17723084,217.16,217.12,2.3031]
[1736046058188,7.17723084,217.16,217.11,2.6]
[1736046058387,7.17723084,217.14,217.11,2.6]
[1736046058582,7.17723084,217.14,217.11,4.9032]
[1736046058885,7.17723084,217.14,217.11,2.3032]
[1736046062984,7.17723084,217.14,217.04,6.30496339]
[1736046063289,7.17723084,217.1,217.04,8.90496339]
[1736046063690,7.17723084,217.1,217.06,2.3038]
[1736046063889,7.17723084,217.08,217.06,2.3038]
[1736046064090,7.17723084,217.08,217.02,25.21985355]
[1736046064385,7.17723084,217.08,217.03,2.3041]
[1736046065188,3.9846,217.14,216.98,6.30496339]
[1736046065189,7.17723084,217.06,216.98,6.30496339]
[1736046065389,7.17723084,217.06,217.01,2.3042]
[1736046065590,7.17723084,217.06,216.98,13.48219423]
[1736046065893,7.17723084,217.04,216.98,13.48219423]
[1736046066090,7.17723084,217.06,217.01,2.3043]
[1736046066295,7.17723084,217.06,216.98,7.17723084]
[1736046067091,7.17723084,217.04,216.96,3.9672]
[1736046067286,2.6,217.09,216.94,25.21985355]
[1736046067287,7.17723084,217.02,216.94,25.21985355]
[1736046067496,7.17723084,217.02,216.94,32.39708439]
[1736046067690,7.17723084,217.0,216.94,25.21985355]
[1736046067892,7.17723084,217.0,216.95,2.3049]
[1736046068190,7.17723084,216.98,216.94,25.21985355]
[1736046068694,7.17723084,216.98,216.91,7.17723084]
[1736046069494,7.17723084,216.98,216.92,2.3053]
[1736046071192,7.17723084,216.98,216.93,2.3052]
[1736046071394,7.17723084,216.98,216.92,7.17723084]
[1736046071584,2.6,216.99,216.94,7.17723084]
[1736046071989,7.17723084,217.02,216.94,7.17723084]
[1736046072395,7.17723084,217.02,216.97,2.3047]
[1736046076197,7.17723084,217.0,216.97,2.3047]
[1736046078507,7.17723084,217.0,216.95,2.3049]
[1736046079104,7.17723084,217.0,216.96,2.3049]
[1736046083611,7.17723084,217.0,216.93,7.17723084]
[1736046083811,7.17723084,216.98,216.93,2.3052]
[1736046085013,7.17723084,216.98,216.91,7.17723084]
[1736046085314,7.17723084,216.98,216.94,2.3051]
[1736046088015,7.17723084,216.98,216.91,7.17723084]
[1736046088216,7.17723084,216.98,216.95,2.305]
[1736046088812,7.17723084,217.0,216.93,7.17723084]
[1736046089012,7.17723084,217.0,216.98,2.3046]
[1736046089211,7.17723084,217.0,216.93,7.17723084]
[1736046089419,7.17723084,217.0,216.96,2.3048]
[1736046091220,7.17723084,216.98,216.94,2.305]
[1736046091516,7.17723084,216.98,216.9,7.17723084]
[1736046092414,7.17723084,216.98,216.93,2.3052]
[1736046092616,7.17723084,216.94,216.86,7.17723084]
[1736046092812,7.17723084,216.92,216.83,9.15696339]
[1736046093014,7.17723084,216.92,216.87,2.3057]
[1736046093215,7.17723084,216.92,216.85,7.17723084]
[1736046094021,7.17723084,216.92,216.87,2.3058]
[1736046095725,7.17723084,216.92,216.88,2.3057]
[1736046098512,7.17723084,216.92,216.89,2.3056]
[1736046099421,7.17723084,216.92,216.87,2.3057]
[1736046099918,12.08253084,216.92,216.85,7.17723084]
[1736046100426,7.17723084,216.9,216.83,7.17723084]
[1736046100619,7.17723084,216.9,216.86,2.3059]
[1736046101527,7.17723084,216.88,216.81,7.17723084]
[1736046102224,7.17723084,216.88,216.85,2.306]
[1736046104324,7.17723084,216.88,216.84,2.3061]
[1736046105226,7.17723084,216.86,216.78,1.3793]
[1736046105420,7.17723084,216.86,216.82,2.3063]
[1736046107125,7.17723084,216.9,216.84,7.17723084]
[1736046107516,7.17723084,216.9,216.86,2.3058]
[1736046108327,7.17723084,216.88,216.86,2.3058]
[1736046112526,7.17723084,216.88,216.82,7.17723084]
[1736046113032,7.17723084,216.88,216.86,2.3058]
[1736046116128,7.17723084,216.88,216.84,2.3061]
[1736046116433,7.17723084,216.86,216.84,2.3061]
[1736046126441,7.17723084,216.88,216.85,2.306]
[1736046126642,7.17723084,216.89,216.85,2.306]
[1736046129644,1.4786,216.95,216.85,7.17723084]
[1736046129845,7.17723084,216.92,216.85,7.17723084]
[1736046130049,1.4786,216.95,216.92,2.3053]
[1736046130050,7.17723084,216.94,216.92,2.3053]
[1736046130245,7.17723084,216.94,216.87,7.17723084]
[1736046131545,7.17723084,216.94,216.9,2.3055]
[1736046131747,7.17723084,216.94,216.87,7.17723084]
[1736046132250,7.17723084,216.92,216.87,7.17723084]
[1736046132751,7.17723084,216.92,216.83,25.21985355]
[1736046132950,7.17723084,216.92,216.85,7.17723084]
[1736046133449,7.17723084,216.92,216.89,2.3056]
[1736046135252,7.17723084,216.92,216.9,2.3055]
[1736046136357,9.77723084,216.94,216.92,2.3052]
[1736046136556,7.17723084,216.94,216.92,2.3052]
[1736046138756,7.17723084,216.96,216.89,7.17723084]
[1736046138955,7.17723084,216.96,216.93,2.3052]
[1736046140158,7.17723084,216.96,216.89,7.17723084]
[1736046140458,7.17723084,216.96,216.94,2.3051]
[1736046141959,7.17723084,216.96,216.89,7.17723084]
[1736046143463,7.17723084,216.96,216.94,2.305]
[1736046147770,7.17723084,216.96,216.9,2.3054]
[1736046147972,7.17723084,216.93,216.9,2.3054]
[1736046148166,7.17723084,216.91,216.9,2.3054]
[1736046151275,7.17723084,216.93,216.9,2.3054]
[1736046153773,7.17723084,216.97,216.91,7.17723084]
[1736046155772,7.17723084,216.97,216.94,2.3051]
[1736046156971,7.17723084,216.97,216.92,2.3052]
[1736046157170,7.17723084,216.95,216.92,2.3052]
[1736046162877,7.17723084,216.95,216.93,2.3052]
[1736046163777,7.17723084,216.97,216.93,2.3052]
[1736046164282,7.17723084,216.97,216.89,7.17723084]
[1736046164476,7.17723084,216.97,216.94,2.3051]
[1736046168784,7.17723084,216.97,216.91,7.17723084]
[1736046168984,7.17723084,216.99,216.97,2.3047]
[1736046169189,7.17723084,217.0,216.97,2.3047]
[1736046174094,7.17723084,217.0,216.98,2.3046]
[1736046175196,1.4001,217.02,216.93,7.17723084]
[1736046175396,7.17723084,217.03,216.95,7.17723084]
[1736046176695,4.9038,217.06,216.99,2.3045]
[1736046176997,7.17723084,217.05,216.99,2.3045]
[1736046177199,7.17723084,217.05,217.0,2.3044]
[1736046178798,7.17723084,217.01,216.98,2.3046]
[1736046183395,7.17723084,217.03,216.98,2.3046]
[1736046186498,7.17723084,217.01,216.98,2.3046]
[1736046188299,7.17723084,217.01,216.94,2.6]
[1736046188505,7.17723084,216.99,216.96,2.3048]
[1736046197206,7.17723084,216.99,216.91,2.58]
[1736046197408,7.17723084,216.97,216.9,6.30496339]
[1736046197704,7.17723084,216.97,216.9,25.21985355]
[1736046198507,7.17723084,216.97,216.93,2.3051]
[1736046198805,7.17723084,216.95,216.93,2.3051]
[1736046201802,7.17723084,216.97,216.93,2.3051]
[1736046208509,2.3045,217.0,216.93,2.3051]
[1736046208705,2.8362,217.01,216.92,7.17723084]
[1736046208706,7.17723084,216.99,216.92,7.17723084]
[1736046209214,7.17723084,216.99,216.94,2.3051]
[1736046209519,2.8362,217.01,216.92,7.17723084]
[1736046209812,7.17723084,217.0,216.94,7.17723084]
[1736046210510,7.17723084,217.0,216.96,2.3048]
[1736046213710,7.17723084,217.0,216.94,9.48223084]
[1736046213904,5.1405,217.01,216.92,7.17723084]
[1736046214106,7.17723084,216.98,216.92,7.17723084]
[1736046214815,7.17723084,216.98,216.93,2.3052]
[1736046215111,7.17723084,216.94,216.9,6.30496339]
[1736046215512,7.17723084,216.94,216.89,6.30496339]
[1736046216013,7.17723084,216.94,216.89,13.48219423]
[1736046216412,7.17723084,216.94,216.91,2.3053]
[1736046217008,7.17723084,216.94,216.92,2.3053]
[1736046217814,7.17723084,216.94,216.9,2.3054]
[1736046218218,7.17723084,216.94,216.89,7.17723084]
[1736046219015,7.17723084,216.94,216.91,2.3054]
[1736046219613,7.17723084,216.96,216.89,7.17723084]
[1736046219813,7.17723084,216.96,216.92,2.3053]
[1736046221808,2.58,216.97,216.86,1.4905]
[1736046221809,7.17723084,216.94,216.86,1.4905]
[1736046222013,7.17723084,216.92,216.86,7.17723084]
[1736046222916,7.17723084,216.9,216.85,25.21985355]
[1736046223116,7.17723084,216.9,216.84,7.17723084]
[1736046223311,7.17723084,216.88,216.83,25.21985355]
[1736046223918,7.17723084,216.88,216.81,7.17723084]
[1736046224518,7.17723084,216.86,216.8,6.30496339]
[1736046224915,7.17723084,216.86,216.79,32.39708439]
[1736046225215,7.17723084,216.86,216.79,25.21985355]
[1736046225420,7.17723084,216.86,216.8,2.3065]
[1736046226225,7.17723084,216.86,216.78,7.17723084]
[1736046227624,7.17723084,216.86,216.8,7.17723084]
[1736046227816,7.17723084,216.88,216.82,7.17723084]
[1736046228520,7.17723084,216.88,216.82,9.48353084]
[1736046229012,7.17723084,216.88,216.8,7.17723084]
[1736046230426,7.17723084,216.88,216.83,2.3062]
[1736046234123,7.17723084,216.88,216.84,2.3061]
[1736046241724,7.17723084,216.86,216.81,2.3064]
[1736046241929,7.17723084,216.84,216.81,2.3064]
[1736046244531,2.58,216.89,216.78,7.17723084]
[1736046244723,7.17723084,216.87,216.82,2.3064]
[1736046247229,7.17723084,216.87,216.83,2.3062]
[1736046247430,7.17723084,216.87,216.75,4.0119]
[1736046247431,2.58,216.89,216.81,7.17723084]
[1736046247631,7.17723084,216.88,216.81,7.17723084]
[1736046247825,7.17723084,216.88,216.84,2.3061]
[1736046251226,9.75723084,216.88,216.85,2.306]
[1736046252728,7.17723084,216.86,216.77,25.21985355]
[1736046252931,7.17723084,216.83,216.77,25.21985355]
[1736046253127,7.17723084,216.83,216.78,6.30496339]
[1736046253635,7.17723084,216.83,216.79,2.3066]
[1736046253831,7.17723084,216.83,216.77,18.91489016]
[1736046254133,7.17723084,216.83,216.76,7.17723084]
[1736046254435,7.17723084,216.83,216.8,2.3065]
[1736046260834,2.306,216.86,216.76,50.03005155]
[1736046261034,7.17723084,216.83,216.81,2.3065]
[1736046267340,7.17723084,216.83,216.79,2.3066]
[1736046267641,7.17723084,216.83,216.76,13.48219423]
[1736046267844,7.17723084,216.83,216.76,7.17723084]
[1736046268238,7.17723084,216.83,216.78,2.3068]
[1736046268438,7.17723084,216.83,216.76,7.17723084]
[1736046269440,7.17723084,216.83,216.79,2.3066]
[1736046269738,9.75723084,216.83,216.79,2.3066]
[1736046278744,1.4254,216.9,216.78,7.17723084]
[1736046278945,7.17723084,216.88,216.84,2.3061]
[1736046279946,2.58,216.89,216.84,2.3061]
[1736046280146,7.17723084,216.87,216.84,2.3061]
[1736046281150,4.8856,216.89,216.84,2.3061]
[1736046281451,7.17723084,216.87,216.84,2.3061]
[1736046282450,7.17723084,216.87,216.83,2.3062]
[1736046283452,7.17723084,216.87,216.8,7.17723084]
[1736046283643,7.17723084,216.87,216.85,2.306]
[1736046287956,2.58,216.89,216.85,2.306]
[1736046288159,7.17723084,216.88,216.85,2.306]
[1736046292559,2.8538,216.91,216.84,7.17723084]
[1736046292856,11.25093084,216.91,216.84,7.17723084]
[1736046294458,11.25093084,216.91,216.87,2.3058]
[1736046294655,8.67093084,216.91,216.87,2.3058]
[1736046295456,7.17723084,216.93,216.9,2.3055]
[1736046295760,12.06223084,216.95,216.9,2.3055]
[1736046296355,7.17723084,216.93,216.88,2.3056]
[1736046300469,7.17723084,216.93,216.89,2.3056]
[1736046302970,9.48223084,216.95,216.89,2.3056]
[1736046303169,2.58,216.96,216.92,2.3053]
[1736046304667,9.75723084,216.96,216.92,2.3053]
[1736046305573,7.17723084,216.94,216.9,2.3054]
[1736046308167,7.17723084,216.92,216.86,2.58]
[1736046308369,7.17723084,216.92,216.82,25.21985355]
[1736046308671,7.17723084,216.9,216.82,34.97708439]
[1736046309575,7.17723084,216.9,216.82,7.17723084]
[1736046310574,7.17723084,216.9,216.86,2.3059]
[1736046310774,7.17723084,216.88,216.81,9.75723084]